bitfinex-derivatives/quotes_BTCF0:USTF0_20240917
["timestamp","ask_amount","ask_price","bid_price","bid_amount"]
[1726533010060,0.57753461,58238.0,58237.0,0.00457514]
[1726533010258,0.37753461,58238.0,58237.0,0.00457514]
[1726533010864,0.10025,58238.0,58237.0,0.00457514]
[1726533011160,0.10225,58238.0,58237.0,0.00457514]
[1726533011766,0.10325,58238.0,58237.0,0.00457514]
[1726533012367,0.09625,58238.0,58237.0,0.00357514]
[1726533012665,0.10825,58238.0,58237.0,0.00457514]
[1726533012867,0.30825,58238.0,58237.0,0.00457514]
[1726533013664,0.2254,58238.0,58237.0,0.00457514]
[1726533013866,0.0254,58238.0,58237.0,0.09042614]
[1726533014569,0.0244,58238.0,58237.0,0.09042614]
[1726533015465,0.0124,58238.0,58237.0,0.08942614]
[1726533015666,0.0234,58238.0,58237.0,0.09042614]
[1726533017872,0.3842,58238.0,58237.0,0.09042614]
[1726533021272,0.0234,58238.0,58237.0,0.09042614]
[1726533021471,0.3842,58238.0,58237.0,0.09042614]
[1726533021676,0.47005,58238.0,58237.0,0.09042614]
[1726533024168,0.10925,58238.0,58237.0,0.09042614]
[1726533024375,0.47005,58238.0,58237.0,0.09042614]
[1726533025968,0.63992843,58238.0,58228.0,0.006528]
[1726533026179,0.085853,58236.0,58235.0,0.085854]
[1726533026375,0.2709745,58236.0,58235.0,0.085854]
[1726533028083,0.6317745,58236.0,58235.0,0.085854]
[1726533028280,0.75148143,58236.0,58235.0,0.085854]
[1726533028780,0.77148143,58236.0,58235.0,0.087854]
[1726533029479,0.86522856,58236.0,58235.0,0.002]
[1726533030476,1.06522856,58236.0,58235.0,0.002]
[1726533033878,0.99522856,58236.0,58235.0,0.002]
[1726533034073,0.73950013,58236.0,58235.0,0.002]
[1726533035687,1.85466013,58236.0,58235.0,0.002]
[1726533035901,0.08586,58231.0,58227.0,0.05292029]
[1726533036183,0.4912,58228.0,58227.0,0.0016]
[1726533036391,0.4912,58228.0,58227.0,0.05292029]
[1726533037190,0.577065,58228.0,58227.0,0.05292029]
[1726533037385,0.577065,58228.0,58227.0,0.0016]
[1726533038089,0.579065,58228.0,58227.0,0.0016]
[1726533038887,0.581065,58228.0,58227.0,0.0016]
[1726533039385,0.58893235,58228.0,58227.0,0.0016]
[1726533040282,0.58893235,58228.0,58227.0,0.05307962]
[1726533040486,0.58893235,58228.0,58227.0,0.05307964]
[1726533040785,0.67479735,58228.0,58227.0,0.0016]
[1726533040991,1.00698363,58228.0,58227.0,0.0016]
[1726533041583,0.92111863,58228.0,58227.0,0.0016]
[1726533042381,0.76725617,58228.0,58227.0,0.0016]
[1726533042886,0.63725617,58228.0,58227.0,0.0016]
[1726533043084,0.76725617,58228.0,58227.0,0.0016]
[1726533044289,0.76676076,58228.0,58227.0,0.0016]
[1726533044489,0.70983182,58228.0,58227.0,0.0016]
[1726533048997,0.58893235,58228.0,58227.0,0.0016]
[1726533049697,0.58893235,58228.0,58227.0,0.087466]
[1726533050794,0.37306735,58228.0,58227.0,0.087466]
[1726533051204,0.37306735,58228.0,58227.0,0.23624564]
[1726533051903,0.37306735,58228.0,58227.0,0.184766]
[1726533054519,0.50306735,58228.0,58227.0,0.135166]
[1726533056023,0.6813174,58228.0,58227.0,0.00828228]
[1726533056222,0.74883792,58228.0,58227.0,0.09414828]
[1726533059329,0.74498152,58228.0,58227.0,0.09414828]
[1726533062027,0.7450532,58228.0,58227.0,0.09414828]
[1726533062827,0.7450532,58228.0,58227.0,0.085866]
[1726533063921,0.3842532,58228.0,58227.0,0.085866]
[1726533064234,0.50306735,58228.0,58227.0,0.085866]
[1726533065436,0.50306735,58228.0,58227.0,0.15451071]
[1726533066329,0.14226735,58228.0,58227.0,0.15451071]
[1726533066531,0.50306735,58228.0,58227.0,0.15451071]
[1726533066737,0.14226735,58228.0,58227.0,0.15451071]
[1726533066936,0.50306735,58228.0,58227.0,0.085866]
[1726533067924,0.14226735,58228.0,58227.0,0.085866]
[1726533068123,0.50306735,58228.0,58227.0,0.085866]
[1726533068532,0.58893235,58228.0,58227.0,0.085866]
[1726533069030,0.58893235,58228.0,58227.0,0.1412055]
[1726533070532,0.58893235,58228.0,58227.0,0.0553395]
[1726533070950,0.63793235,58228.0,58227.0,0.0553395]
[1726533071140,0.79161643,58228.0,58200.0,0.004]
[1726533071437,0.23954908,58227.0,58226.0,0.085867]
[1726533072555,0.17395648,58227.0,58226.0,0.085867]
[1726533073843,0.17495648,58227.0,58226.0,0.215867]
[1726533074031,0.10005648,58227.0,58226.0,0.816974]
[1726533074232,0.19969944,58227.0,58226.0,0.816974]
[1726533074544,0.18795883,58231.0,58228.0,0.085865]
[1726533074837,0.04595883,58235.0,58234.0,0.085856]
[1726533075146,0.3608,58239.0,58238.0,0.08585]
[1726533077045,0.3728,58239.0,58238.0,0.08685]
[1726533077638,0.3868,58239.0,58238.0,0.08785]
[1726533079034,0.4395038,58239.0,58238.0,0.08785]
[1726533079238,0.3868,58239.0,58238.0,0.08785]
[1726533079440,0.3868,58239.0,58238.0,0.13926111]
[1726533079633,0.3868,58239.0,58238.0,0.08785]
[1726533080942,0.3868,58239.0,58238.0,0.13925209]
[1726533081249,0.3868,58239.0,58238.0,0.13924623]
[1726533081755,0.3868,58239.0,58238.0,0.08785]
[1726533082138,0.3868,58239.0,58238.0,0.13924348]
[1726533082338,0.3868,58239.0,58238.0,0.08785]
[1726533082544,0.3868,58239.0,58238.0,0.13924348]
[1726533082938,0.3868,58239.0,58238.0,0.08785]
[1726533083544,0.3868,58239.0,58238.0,0.13924348]
[1726533083942,0.3868,58239.0,58238.0,0.08785]
[1726533085748,0.3868,58239.0,58238.0,0.13924348]
[1726533086044,0.026,58239.0,58238.0,0.08785]
[1726533089141,0.3608,58252.0,58246.0,0.085838]
[1726533089342,0.0457,58247.0,58246.0,0.285838]
[1726533089646,0.046,58254.0,58248.0,0.085835]
[1726533089951,0.046,58254.0,58247.0,0.085837]
[1726533089952,0.004,58257.0,58256.0,0.085823]
[1726533090258,0.3608,58258.0,58257.0,0.085822]
[1726533090940,0.0972,58261.0,58260.0,0.085817]
[1726533091141,0.3608,58269.0,58266.0,0.085807]
[1726533091354,0.3608,58269.0,58267.0,0.2]
[1726533091355,0.0461,58268.0,58267.0,0.2]
[1726533092443,0.0501,58268.0,58267.0,0.2]
[1726533092951,0.0491,58268.0,58267.0,0.2]
[1726533093254,0.0491,58268.0,58257.0,0.3608]
[1726533093255,0.21404346,58268.0,58265.0,0.2]
[1726533093457,0.16494346,58267.0,58266.0,0.085809]
[1726533094856,0.16894346,58267.0,58266.0,0.085809]
[1726533099563,0.1646571,58267.0,58266.0,0.085809]
[1726533100248,0.085811,58265.0,58263.0,0.085813]
[1726533100462,0.90907244,58264.0,58256.0,0.085823]
[1726533100663,0.3616,58257.0,58256.0,0.085823]
[1726533100851,0.5214571,58257.0,58256.0,0.085823]
[1726533101247,0.4066,58257.0,58256.0,0.085823]
[1726533101446,0.4066,58257.0,58253.0,0.00257496]
[1726533101656,0.286626,58254.0,58253.0,0.00257496]
[1726533101861,0.086626,58254.0,58253.0,0.00257496]
[1726533102357,0.081626,58254.0,58247.0,0.085835]
[1726533102670,0.080826,58254.0,58253.0,0.009]
[1726533104748,0.080826,58254.0,58253.0,0.017]
[1726533105058,0.084826,58254.0,58253.0,0.009]
[1726533105663,0.089826,58254.0,58253.0,0.002]
[1726533106352,0.11765827,58254.0,58253.0,0.002]
[1726533106663,0.47845827,58254.0,58253.0,0.002]
[1726533107756,0.47345827,58254.0,58253.0,0.001]
[1726533107955,0.47845827,58254.0,58253.0,0.002]
[1726533108558,0.47345827,58254.0,58253.0,0.001]
[1726533108858,0.47845827,58254.0,58253.0,0.002]
[1726533109262,0.450626,58254.0,58253.0,0.002]
[1726533111863,0.5698,58254.0,58245.0,0.05526186]
[1726533112062,0.0008,58246.0,58243.0,0.0025752]
[1726533112363,0.086641,58244.0,58243.0,0.0025752]
[1726533112759,0.134241,58244.0,58243.0,0.0025752]
[1726533114259,0.134241,58244.0,58243.0,0.0045752]
[1726533114862,0.14205339,58244.0,58243.0,0.0045752]
[1726533115065,0.18985339,58244.0,58243.0,0.0045752]
[1726533115362,0.18985339,58244.0,58243.0,0.0055752]
[1726533116367,0.18985339,58244.0,58237.0,0.085851]
[1726533116368,0.085848,58240.0,58237.0,0.05226094]
[1726533116564,0.53174172,58238.0,58237.0,0.05226094]
[1726533116761,0.69018588,58238.0,58237.0,0.05226094]
[1726533117156,0.52004416,58238.0,58237.0,0.05226094]
[1726533117362,0.31237062,58238.0,58237.0,0.05226094]
[1726533117575,0.10654039,58238.0,58237.0,0.06026094]
[1726533117969,0.10654039,58238.0,58237.0,0.06726094]
[1726533118670,0.10754039,58238.0,58237.0,0.06726094]
[1726533119059,0.10754039,58238.0,58237.0,0.42806094]
[1726533119572,0.10747992,58238.0,58237.0,0.42806094]
[1726533119968,0.0018,58238.0,58237.0,0.42806094]
[1726533120273,0.10747992,58238.0,58237.0,0.42806094]
[1726533120671,0.10747992,58238.0,58237.0,0.47576094]
[1726533123367,0.0018,58238.0,58237.0,0.47576094]
[1726533123969,0.0018,58238.0,58237.0,0.52704384]
[1726533125166,0.0018,58238.0,58237.0,0.47576094]
[1726533126773,0.0018,58238.0,58237.0,0.11496094]
[1726533129074,0.0018,58238.0,58237.0,0.18342062]
[1726533129274,0.00960687,58238.0,58237.0,0.18342062]
[1726533129588,0.0018,58238.0,58237.0,0.18342062]
[1726533129781,0.28765,58238.0,58237.0,0.015]
[1726533129985,0.085851,58237.0,58235.0,0.05136985]
[1726533130282,0.085856,58234.0,58231.0,0.07103547]
[1726533130478,0.5608,58232.0,58231.0,0.05398174]
[1726533130689,0.085865,58228.0,58227.0,0.06845968]
[1726533130977,0.085866,58227.0,58225.0,0.06845968]
[1726533131172,0.2008,58228.0,58225.0,0.06845968]
[1726533131173,0.086667,58226.0,58225.0,0.06845968]
[1726533131373,0.1500202,58226.0,58220.0,0.085876]
[1726533131581,0.17043186,58223.0,58221.0,0.085874]
[1726533131771,0.15511985,58222.0,58221.0,0.085874]
[1726533131976,0.10340756,58222.0,58221.0,0.085874]
[1726533132377,0.07656377,58222.0,58221.0,0.085874]
[1726533132577,0.04205436,58222.0,58221.0,0.085874]
[1726533134082,0.04305436,58222.0,58221.0,0.085874]
[1726533135979,0.15420742,58222.0,58221.0,0.085874]
[1726533136176,0.19626265,58222.0,58221.0,0.085874]
[1726533136772,0.24897604,58222.0,58221.0,0.085874]
[1726533136976,0.24897604,58222.0,58216.0,0.36337611]
[1726533136977,0.085875,58221.0,58216.0,0.36337611]
[1726533137185,0.0008,58217.0,58216.0,0.44925811]
[1726533137381,0.04285523,58217.0,58216.0,0.44925811]
[1726533138276,0.0008,58217.0,58216.0,0.57088514]
[1726533138589,0.13616885,58218.0,58217.0,0.085881]
[1726533138894,0.13616885,58218.0,58217.0,0.29007575]
[1726533139191,0.13616885,58218.0,58217.0,0.20450803]
[1726533139581,0.13616885,58218.0,58217.0,0.29007911]
[1726533140188,0.001,58221.0,58217.0,0.29007911]
[1726533140390,0.001,58221.0,58217.0,0.17145208]
[1726533140686,0.085875,58221.0,58220.0,0.06846321]
[1726533141084,0.085879,58219.0,58217.0,0.17145208]
[1726533141288,0.0008,58218.0,58217.0,0.17145208]
[1726533141886,0.0008,58218.0,58217.0,0.29016029]
[1726533143081,0.0008,58218.0,58217.0,0.17145208]
[1726533143794,0.086679,58218.0,58217.0,0.17145208]
[1726533144087,0.087679,58218.0,58217.0,0.17445208]
[1726533144490,0.088679,58218.0,58217.0,0.003]
[1726533144688,0.09652416,58218.0,58217.0,0.07146682]
[1726533144992,0.14182416,58218.0,58217.0,0.003]
[1726533150992,0.085881,58217.0,58210.0,0.085891]
[1726533151199,0.05594516,58218.0,58205.0,0.004]
[1726533151200,0.085894,58208.0,58205.0,0.004]
[1726533151503,0.2008,58211.0,58199.0,0.43332366]
[1726533151504,0.085898,58205.0,58199.0,0.43332366]
[1726533151695,0.085898,58205.0,58204.0,0.0859]
[1726533152596,0.09427102,58205.0,58204.0,0.0859]
[1726533153900,0.09427102,58205.0,58202.0,0.08557108]
[1726533154104,0.09527102,58205.0,58204.0,0.001]
[1726533154806,0.002,58205.0,58204.0,0.0869]
[1726533155005,0.002,58205.0,58204.0,0.0859]
[1726533155208,0.002,58205.0,58203.0,0.2]
[1726533155209,0.51744,58205.0,58203.0,0.06844163]
[1726533155409,0.085906,58200.0,58199.0,0.07101847]
[1726533155613,0.086706,58200.0,58199.0,0.00257684]
[1726533155915,0.085906,58200.0,58199.0,0.00257684]
[1726533157318,0.086906,58200.0,58199.0,0.00257684]
[1726533158019,0.001,58200.0,58199.0,0.08848384]
[1726533158212,0.002,58200.0,58199.0,0.08848384]
[1726533168026,0.002,58200.0,58199.0,0.21848384]
[1726533168928,0.0008,58204.0,58203.0,0.085901]
[1726533170131,0.0018,58204.0,58203.0,0.085901]
[1726533171127,0.0028,58204.0,58203.0,0.085901]
[1726533175126,0.1328,58204.0,58203.0,0.085901]
[1726533175526,0.1328,58204.0,58203.0,0.15436575]
[1726533175725,0.1328,58204.0,58203.0,0.085901]
[1726533179626,0.1328,58204.0,58203.0,0.17147208]
[1726533179832,0.1328,58204.0,58203.0,0.085901]
[1726533181029,0.1811,58204.0,58203.0,0.085901]
[1726533181927,0.2305,58204.0,58203.0,0.085901]
[1726533183928,0.085903,58202.0,58200.0,0.08557108]
[1726533184233,0.085906,58200.0,58199.0,0.08814792]
[1726533184429,0.085906,58200.0,58199.0,0.00257684]
[1726533184430,0.446706,58200.0,58199.0,0.00257684]
[1726533184633,0.447506,58200.0,58199.0,0.00257684]
[1726533184935,0.446706,58200.0,58199.0,0.00257684]
[1726533186140,0.445706,58200.0,58199.0,0.00257684]
[1726533186343,0.3608,58200.0,58199.0,0.08848384]
[1726533186636,0.3618,58200.0,58199.0,0.20662518]
[1726533186839,0.31881861,58200.0,58199.0,0.20662518]
[1726533187139,0.31981861,58200.0,58199.0,0.20762518]
[1726533189432,0.002,58200.0,58199.0,0.20762518]
[1726533191739,0.002,58200.0,58199.0,0.31069257]
[1726533191939,0.002,58200.0,58199.0,0.20762518]
[1726533192142,0.002,58200.0,58199.0,0.70858487]
[1726533193945,0.002,58200.0,58199.0,0.34778487]
[1726533194339,0.002,58200.0,58199.0,0.20762518]
[1726533194545,0.002,58200.0,58199.0,0.34773761]
[1726533196554,0.002,58200.0,58199.0,0.70853761]
[1726533198647,0.002,58200.0,58199.0,0.34773761]
[1726533199749,0.002,58200.0,58199.0,0.43364461]
[1726533200348,0.3608,58218.0,58207.0,0.085896]
[1726533200546,0.3608,58220.0,58211.0,0.08589]
[1726533200741,0.3608,58220.0,58219.0,0.215878]
[1726533201950,0.3690662,58220.0,58219.0,0.215878]
[1726533202362,0.3700662,58220.0,58219.0,0.215878]
[1726533202556,0.3730662,58220.0,58219.0,0.28447077]
[1726533202865,0.3740662,58220.0,58219.0,0.28447077]
[1726533203563,0.3740662,58220.0,58219.0,0.085878]
[1726533206065,0.0132662,58220.0,58219.0,0.215878]
[1726533206468,0.06950752,58220.0,58219.0,0.301756]
[1726533206665,0.04515548,58225.0,58224.0,0.08587]
[1726533206666,0.00257637,58225.0,58224.0,0.08587]
[1726533206867,0.00827553,58226.0,58225.0,0.171738]
[1726533207066,0.00827553,58226.0,58225.0,0.816978]
[1726533207365,0.10213797,58230.0,58229.0,0.085863]
[1726533207670,0.10213797,58232.0,58231.0,0.08586]
[1726533207866,0.0025761,58235.0,58232.0,0.085859]
[1726533207867,0.10213797,58233.0,58232.0,0.085859]
[1726533208667,0.0025761,58235.0,58234.0,0.085856]
[1726533208668,0.10471407,58235.0,58234.0,0.085856]
[1726533208870,0.10471407,58235.0,58234.0,0.215856]
[1726533209266,0.0025761,58235.0,58234.0,0.215856]
[1726533209764,0.0035761,58235.0,58234.0,0.215856]
[1726533209965,0.0035761,58235.0,58234.0,0.285856]
[1726533210565,0.0035761,58235.0,58234.0,0.646656]
[1726533211170,0.0045761,58235.0,58234.0,0.646656]
[1726533211978,0.0035761,58235.0,58234.0,0.646656]
[1726533212179,0.0045761,58235.0,58234.0,0.646656]
[1726533212679,0.0035761,58235.0,58234.0,0.647656]
[1726533213891,0.0025761,58235.0,58234.0,0.647656]
[1726533214779,0.0045761,58235.0,58234.0,0.646656]
[1726533214988,0.0045761,58235.0,58234.0,0.286856]
[1726533215374,0.0045761,58235.0,58234.0,0.285856]
[1726533215575,0.0055761,58235.0,58234.0,0.285856]
[1726533217286,0.0055761,58235.0,58234.0,0.085856]
[1726533218981,0.003,58235.0,58234.0,0.085856]
[1726533220377,0.003,58235.0,58234.0,0.285856]
[1726533221380,0.003,58235.0,58234.0,0.085856]
[1726533221575,0.003,58235.0,58231.0,0.56337577]
[1726533221576,0.15619609,58235.0,58231.0,0.51309586]
[1726533221780,0.0008,58232.0,58231.0,0.59763586]
[1726533221977,0.02863752,58232.0,58231.0,0.59763586]
[1726533222183,0.10869389,58232.0,58231.0,0.59763586]
[1726533222373,0.10869389,58232.0,58231.0,0.60021166]
[1726533223186,0.10869389,58232.0,58231.0,0.60221166]
[1726533223379,0.10869389,58232.0,58231.0,0.2904358]
[1726533223579,0.10869389,58232.0,58231.0,0.2924358]
[1726533224681,0.10655821,58232.0,58231.0,0.2924358]
[1726533224881,0.10655821,58232.0,58231.0,0.2914358]
[1726533225289,0.0008,58232.0,58231.0,0.2914358]
[1726533225491,0.16439805,58232.0,58231.0,0.2914358]
[1726533225691,0.24231861,58232.0,58231.0,0.2914358]
[1726533226285,0.24231861,58232.0,58231.0,0.2894358]
[1726533226592,0.10655821,58232.0,58231.0,0.2894358]
[1726533227783,0.11493605,58232.0,58231.0,0.2894358]
[1726533228378,0.16763671,58232.0,58231.0,0.2894358]
[1726533228584,0.16237393,58232.0,58231.0,0.2894358]
[1726533228776,0.15399609,58232.0,58231.0,0.2894358]
[1726533229186,0.15399609,58232.0,58231.0,0.2898358]
[1726533229990,0.15399609,58232.0,58231.0,0.2198358]
[1726533230292,0.15319609,58232.0,58231.0,0.2198358]
[1726533230489,0.15319609,58232.0,58231.0,0.42274625]
[1726533231482,0.15319609,58232.0,58231.0,0.33691605]
[1726533231688,0.00811037,58234.0,58233.0,0.085857]
[1726533231892,0.0476,58238.0,58235.0,0.085854]
[1726533232087,0.0476,58238.0,58237.0,0.0004]
[1726533232288,0.0476,58238.0,58236.0,0.19847619]
[1726533232495,0.0476,58238.0,58237.0,0.06847619]
[1726533233495,0.0526,58238.0,58236.0,0.13]
[1726533233696,0.0004,58237.0,58236.0,0.13]
[1726533235095,0.0004,58237.0,58236.0,0.21559524]
[1726533235389,0.0004,58237.0,58236.0,0.11729786]
[1726533235794,0.0094,58237.0,58236.0,0.11729786]
[1726533235993,0.0094,58237.0,58236.0,0.20315086]
[1726533236688,0.1154882,58237.0,58233.0,0.0004]
[1726533236998,0.0004,58234.0,58233.0,0.086257]
[1726533237185,0.06444317,58234.0,58233.0,0.086257]
[1726533237381,0.15918879,58234.0,58233.0,0.086257]
[1726533239195,0.15846932,58234.0,58233.0,0.086257]
[1726533239396,0.16046932,58234.0,58233.0,0.086257]
[1726533239695,0.16146932,58234.0,58233.0,0.086257]
[1726533240193,0.0034,58234.0,58233.0,0.086257]
[1726533240696,0.16146611,58234.0,58233.0,0.086257]
[1726533241595,0.0034,58234.0,58233.0,0.086257]
[1726533241891,0.13364577,58234.0,58233.0,0.086257]
[1726533242095,0.16148342,58234.0,58233.0,0.086257]
[1726533243584,0.0034,58234.0,58233.0,0.34504027]
[1726533251595,0.16151161,58234.0,58230.0,0.31598615]
[1726533251796,0.15811161,58233.0,58230.0,0.31598615]
[1726533251999,0.0004,58231.0,58230.0,0.40184815]
[1726533252302,0.15851161,58231.0,58230.0,0.40184815]
[1726533252598,0.13067396,58231.0,58230.0,0.40184815]
[1726533252797,0.13067396,58231.0,58230.0,0.40384815]
[1726533253202,0.13067396,58231.0,58230.0,0.40584815]
[1726533255205,0.13067396,58231.0,58230.0,0.53584815]
[1726533255403,0.13167396,58231.0,58230.0,0.53184815]
[1726533255602,0.13167396,58231.0,58230.0,0.40184815]
[1726533255603,0.17575257,58231.0,58230.0,0.40184815]
[1726533255821,0.0809733,58231.0,58230.0,0.40184815]
[1726533256306,0.0789733,58231.0,58230.0,0.40384815]
[1726533256611,0.21653574,58231.0,58230.0,0.004]
[1726533256906,0.085869,58225.0,58224.0,0.004]
[1726533257093,0.085871,58224.0,58220.0,0.0024]
[1726533257291,0.31847846,58221.0,58220.0,0.0024]
[1726533257497,0.26027574,58221.0,58220.0,0.0024]
[1726533257707,0.28812123,58221.0,58220.0,0.0024]
[1726533258597,0.13,58221.0,58220.0,0.12052067]
[1726533259003,0.13,58221.0,58220.0,0.12352067]
[1726533259294,0.13,58221.0,58220.0,0.09214057]
[1726533259503,0.13,58221.0,58220.0,0.0064]
[1726533261110,1.331155,58221.0,58220.0,0.0064]
[1726533261706,1.331155,58221.0,58220.0,0.05780595]
[1726533262406,1.20790331,58221.0,58220.0,0.0064]
[1726533262711,0.13,58223.0,58220.0,0.14368195]
[1726533262914,0.13,58223.0,58222.0,0.0004]
[1726533263908,0.215872,58223.0,58222.0,0.0004]
[1726533264103,0.14984642,58224.0,58222.0,0.0004]
[1726533264309,0.72288,58225.0,58224.0,0.08587]
[1726533264613,0.0004,58225.0,58224.0,0.21627]
[1726533264798,0.0004,58225.0,58224.0,0.46684996]
[1726533265004,1e-08,58228.0,58227.0,0.085866]
[1726533265203,0.3648,58236.0,58234.0,0.085856]
[1726533265402,0.3608,58236.0,58235.0,0.18175336]
[1726533265620,0.3608,58236.0,58235.0,0.18135336]
[1726533265805,0.3608,58236.0,58235.0,0.05135353]
[1726533266008,0.4908,58236.0,58235.0,0.05135353]
[1726533266709,0.5038,58236.0,58235.0,0.05135353]
[1726533266904,0.3738,58236.0,58234.0,0.06846912]
[1726533267106,0.0004,58235.0,58234.0,0.06846912]
[1726533268312,0.0004,58235.0,58234.0,0.15432512]
[1726533268721,0.0124,58235.0,58234.0,0.15432512]
[1726533269423,0.0244,58235.0,58234.0,0.15432512]
[1726533270519,0.0244,58235.0,58234.0,0.06846912]
[1726533273313,0.0244,58235.0,58232.0,0.00257585]
[1726533273517,0.0004,58233.0,58232.0,0.00257585]
[1726533273719,0.0004,58233.0,58228.0,0.25277711]
[1726533273720,0.15885062,58233.0,58228.0,0.25277711]
[1726533273914,0.15845062,58232.0,58230.0,0.00381]
[1726533274112,0.15845062,58231.0,58230.0,0.089672]
[1726533274414,0.08558016,58235.0,58231.0,0.08586]
[1726533274718,0.01,58233.0,58231.0,0.08586]
[1726533274911,0.13061453,58232.0,58231.0,0.08586]
[1726533276012,0.13961453,58232.0,58231.0,0.08586]
[1726533277422,0.14861453,58232.0,58231.0,0.08586]
[1726533281722,0.018,58232.0,58231.0,0.08586]
[1726533288726,0.09321416,58232.0,58231.0,0.05354751]
[1726533289027,0.14591737,58232.0,58231.0,0.05354751]
[1726533289536,0.50671737,58232.0,58231.0,0.05354751]
[1726533289722,0.56830066,58232.0,58231.0,0.05354751]
[1726533296931,0.56830066,58232.0,58231.0,0.26313239]
[1726533296932,0.33584273,58232.0,58231.0,0.26313239]
[1726533297229,0.576657,58233.0,58231.0,0.34899239]
[1726533297429,0.576657,58233.0,58232.0,0.26424607]
[1726533297733,0.576657,58233.0,58232.0,0.12077017]
[1726533298830,0.586657,58233.0,58232.0,0.12080408]
[1726533299433,0.594657,58233.0,58232.0,0.12080408]
[1726533300633,0.595657,58233.0,58232.0,0.12180408]
[1726533300828,0.595657,58233.0,58232.0,0.0872475]
[1726533300829,0.681514,58233.0,58232.0,0.0872475]
[1726533301135,0.681514,58233.0,58232.0,0.0014]
[1726533301726,0.085863,58229.0,58227.0,0.00257575]
[1726533301925,0.8979,58228.0,58223.0,0.0004]
[1726533302129,0.1304,58224.0,58223.0,0.0004]
[1726533302337,0.13,58224.0,58223.0,0.1211155]
[1726533303033,0.13,58224.0,58223.0,0.1207155]
[1726533303236,0.084872,58223.0,58222.0,0.00537633]
[1726533303536,0.446072,58223.0,58222.0,0.12488027]
[1726533303733,0.63603033,58223.0,58222.0,0.00537633]
[1726533305024,0.68413033,58223.0,58222.0,0.00537633]
[1726533305237,0.68413033,58223.0,58222.0,0.00737633]
[1726533305436,0.68413033,58223.0,58222.0,0.00837633]
[1726533306945,0.68407779,58223.0,58222.0,0.00837633]
[1726533307953,0.62248033,58223.0,58222.0,0.00837633]
[1726533308544,0.7930098,58223.0,58222.0,0.00837633]
[1726533309741,0.62248033,58223.0,58222.0,0.00837633]
[1726533311747,0.494172,58223.0,58222.0,0.00837633]
[1726533312148,0.494172,58223.0,58222.0,0.05976589]
[1726533312348,0.494172,58223.0,58222.0,0.00837633]
[1726533312650,0.494172,58223.0,58222.0,0.0597629]
[1726533313153,0.494172,58223.0,58222.0,0.1456359]
[1726533315660,0.494172,58223.0,58222.0,0.09424933]
[1726533315849,0.446072,58223.0,58222.0,0.09424933]
[1726533318855,0.3612,58223.0,58222.0,0.22424933]
[1726533319155,0.4536,58228.0,58222.0,0.22424933]
[1726533319156,0.3622,58228.0,58227.0,0.085866]
[1726533319351,0.3612,58228.0,58227.0,0.33484651]
[1726533319555,0.3612,58228.0,58227.0,0.33524651]
[1726533320255,0.3608,58228.0,58227.0,0.33524651]
[1726533320850,0.3648,58228.0,58227.0,0.33524651]
[1726533321546,0.3688,58228.0,58227.0,0.33524651]
[1726533323858,0.3688,58228.0,58227.0,0.20524651]
[1726533324059,0.3688,58228.0,58227.0,0.0004]
[1726533324060,0.4988,58228.0,58227.0,0.0004]
[1726533326865,0.62745918,58228.0,58227.0,0.0004]
[1726533332574,0.68904889,58228.0,58227.0,0.0004]
[1726533333371,0.81510817,58228.0,58227.0,0.0004]
[1726533333563,0.87669796,58228.0,58227.0,0.0004]
[1726533333760,0.68904897,58228.0,58227.0,0.0004]
[1726533333961,0.68904897,58228.0,58227.0,0.08613056]
[1726533333962,0.4988,58228.0,58227.0,0.08613056]
[1726533334464,0.4988,58228.0,58227.0,0.20524465]
[1726533334665,0.3688,58228.0,58227.0,0.29111065]
[1726533335678,0.3688,58228.0,58227.0,0.29109665]
[1726533335877,0.008,58228.0,58227.0,0.29109665]
[1726533338674,0.008,58228.0,58227.0,0.29110508]
[1726533340669,0.008,58228.0,58227.0,0.20536609]
[1726533341967,0.12871307,58228.0,58223.0,0.0032]
[1726533342172,0.0004,58224.0,58223.0,0.089072]
[1726533342369,0.07640453,58224.0,58223.0,0.089072]
[1726533342566,0.12911307,58224.0,58223.0,0.089072]
[1726533343578,0.12911307,58224.0,58223.0,0.090072]
[1726533345571,0.12911307,58224.0,58223.0,0.091072]
[1726533347866,0.12911307,58224.0,58223.0,0.221072]
[1726533348067,0.06158951,58228.0,58227.0,0.085866]
[1726533348266,0.05270487,58228.0,58227.0,0.086266]
[1726533348973,0.00257633,58230.0,58229.0,0.085863]
[1726533349275,0.00257633,58230.0,58229.0,0.20653968]
[1726533349874,0.00257633,58230.0,58229.0,0.34984343]
[1726533350270,0.00257633,58230.0,58229.0,0.35084343]
[1726533350271,0.00857633,58230.0,58229.0,0.35084343]
[1726533350672,0.01457633,58230.0,58229.0,0.35184343]
[1726533353566,0.01457633,58230.0,58229.0,0.20853968]
[1726533353773,0.01457633,58230.0,58229.0,0.12267668]
[1726533354077,0.10043833,58230.0,58229.0,0.12267668]
[1726533354277,0.10043833,58230.0,58229.0,0.0024]
[1726533357979,1.21563833,58230.0,58224.0,0.05510264]
[1726533358279,0.577069,58225.0,58224.0,0.0036]
[1726533359775,0.578069,58225.0,58224.0,0.0036]
[1726533362180,0.578069,58225.0,58223.0,0.00381]
[1726533362181,0.08587,58224.0,58223.0,0.00381]
[1726533362486,0.44747,58224.0,58223.0,0.00381]
[1726533363789,0.53334,58224.0,58223.0,0.00381]
[1726533364091,0.85289664,58224.0,58223.0,0.00481]
[1726533364674,0.085881,58217.0,58216.0,0.004]
[1726533364974,0.085881,58217.0,58208.0,0.004]
[1726533364975,0.085893,58209.0,58208.0,0.004]
[1726533365174,0.085893,58209.0,58204.0,0.089899]
[1726533365175,0.085898,58205.0,58204.0,0.089899]
[1726533365389,0.36950253,58205.0,58204.0,0.089899]
[1726533365582,0.34465316,58205.0,58204.0,0.089899]
[1726533365883,0.33685316,58205.0,58204.0,0.089899]
[1726533366388,0.49038202,58205.0,58204.0,0.089899]
[1726533366587,0.49038202,58205.0,58204.0,0.101899]
[1726533366588,0.33785316,58205.0,58204.0,0.101899]
[1726533366889,0.32785316,58205.0,58204.0,0.101899]
[1726533367382,0.32885316,58205.0,58204.0,0.111899]